Workbook

Sheet Sheet1
A1: 上海腾准生物科技有限公司--中华试剂网 欣维尔玻璃仪器授权代理商 联系专属客服可在国内折后价基础上再优惠。 网站：https://www.labgogo.com/ 客服 QQ号码 电话 邮箱 艾米 3003860499 18916513660 aimi@labgogo.com 郭敏 3003815850 15221809310 guomin@labgogo.com 李媛媛 2881074831 13818339413 liyuanyuan@labgogo.com 娜娜 3003867735 19512290145 nana@labgogo.com 安心 2881074832 18916593661 anxin@labgogo.com 安吉拉 3003871136 19821570922 angela@labgogo.com
A7: 货号 | B7: 品名 | C7: 单位 | D7: 欣维尔原价 | E7: 国内折后价 | F7: 国内折后价÷原价折扣率 | G7: 品号性质 | H7: 购买链接含图片
A8: A032414C | B8: 上磨口24/40下磨口14/20,具砂板连接头 | C8: 个 | D8: 94 | E8: 55 | F8: =E8/D8 -> 59% | G8: 自制件 | H8: https://www.labgogo.com/prodetail/%E6%AC%A3%E7%BB%B4%E5%B0%94/A032419C.html
A9: A032419C | B9: 上磨口24/40下磨口19/22,具砂板连接头 | C9: 个 | D9: 99 | E9: 57 | F9: 58% | G9: 自制件 | H9: https://www.labgogo.com/prodetail/%E6%AC%A3%E7%BB%B4%E5%B0%94/A032419C.html
A10: A032424C | B10: 上磨口24/40下磨口24/40,具砂板连接头 | C10: 个 | D10: 104 | E10: 60 | F10: 58% | G10: 自制件 | H10: https://www.labgogo.com/prodetail/%E6%AC%A3%E7%BB%B4%E5%B0%94/A032424C.html
A11: A032914C | B11: 上磨口29/42下磨口14/20,具砂板连接头 | C11: 个 | D11: 109 | E11: 63 | F11: 58% | G11: 自制件 | H11: https://www.labgogo.com/prodetail/%E6%AC%A3%E7%BB%B4%E5%B0%94/A032914C.html
A12: A032919C | B12: 上磨口29/42下磨口19/22,具砂板连接头 | C12: 个 | D12: 115 | E12: 67 | F12: 58% | G12: 自制件 | H12: https://www.labgogo.com/prodetail/%E6%AC%A3%E7%BB%B4%E5%B0%94/A032919C.html
A13: A032924C | B13: 上磨口29/42下磨口24/40,具砂板连接头 | C13: 个 | D13: 121 | E13: 70 | F13: 58% | G13: 自制件 | H13: https://www.labgogo.com/prodetail/%E6%AC%A3%E7%BB%B4%E5%B0%94/A032924C.html
A14: A032929C | B14: 上磨口29/42下磨口29/42,具砂板连接头 | C14: 个 | D14: 126 | E14: 73 | F14: 58% | G14: 自制件 | H14: https://www.labgogo.com/prodetail/%E6%AC%A3%E7%BB%B4%E5%B0%94/A032929C.html
A15: A051420 | B15: 14/20口,带小咀抽气接头 | C15: 个 | D15: 43 | E15: 25 | F15: 58% | G15: 自制件 | H15: https://www.labgogo.com/prodetail/%E6%AC%A3%E7%BB%B4%E5%B0%94/A051420.html
A16: A051922 | B16: 19/22口,带小咀抽气接头 | C16: 个 | D16: 45 | E16: 26 | F16: 58% | G16: 自制件 | H16: https://www.labgogo.com/prodetail/%E6%AC%A3%E7%BB%B4%E5%B0%94/A051922.html
A17: A052440 | B17: 24/40口,带小咀抽气接头 | C17: 个 | D17: 55 | E17: 32 | F17: 58% | G17: 自制件 | H17: https://www.labgogo.com/prodetail/%E6%AC%A3%E7%BB%B4%E5%B0%94/A052440.html
A18: A052942 | B18: 29/42口,带小咀抽气接头 | C18: 个 | D18: 58 | E18: 34 | F18: 59% | G18: 自制件 | H18: https://www.labgogo.com/prodetail/%E6%AC%A3%E7%BB%B4%E5%B0%94/A052942.html
A19: A061420 | B19: 14/20口,带胶帽温度计蒸馏头 | C19: 个 | D19: 49 | E19: 28 | F19: 57% | G19: 自制件 | H19: https://www.labgogo.com/prodetail/%E6%AC%A3%E7%BB%B4%E5%B0%94/A061420.html
A20: A061922 | B20: 19/22口,带胶帽温度计蒸馏头 | C20: 个 | D20: 52 | E20: 30 | F20: 58% | G20: 自制件 | H20: https://www.labgogo.com/prodetail/%E6%AC%A3%E7%BB%B4%E5%B0%94/A061922.html
A21: A062440 | B21: 24/40口,带胶帽温度计蒸馏头 | C21: 个 | D21: 62 | E21: 36 | F21: 58% | G21: 自制件 | H21: https://www.labgogo.com/prodetail/%E6%AC%A3%E7%BB%B4%E5%B0%94/A062440.html
A22: A062942 | B22: 29/42口,带胶帽温度计蒸馏头 | C22: 个 | D22: 72 | E22: 42 | F22: 58% | G22: 自制件 | H22: https://www.labgogo.com/prodetail/%E6%AC%A3%E7%BB%B4%E5%B0%94/A062942.html
A23: A071420 | B23: 14/20口,具小咀接受管 | C23: 个 | D23: 49 | E23: 28 | F23: 57% | G23: 自制件 | H23: https://www.labgogo.com/prodetail/%E6%AC%A3%E7%BB%B4%E5%B0%94/A071420.html
A24: A071922 | B24: 19/22口,具小咀接受管 | C24: 个 | D24: 51 | E24: 30 | F24: 59% | G24: 自制件 | H24: https://www.labgogo.com/prodetail/%E6%AC%A3%E7%BB%B4%E5%B0%94/A071922.html
A25: A072440 | B25: 24/40口,具小咀接受管 | C25: 个 | D25: 56 | E25: 32 | F25: 57% | G25: 自制件 | H25: https://www.labgogo.com/prodetail/%E6%AC%A3%E7%BB%B4%E5%B0%94/A072440.html
A26: A072942 | B26: 29/42口,具小咀接受管 | C26: 个 | D26: 80 | E26: 46 | F26: 58% | G26: 自制件 | H26: https://www.labgogo.com/prodetail/%E6%AC%A3%E7%BB%B4%E5%B0%94/A072942.html
A27: A081314 | B27: 内螺纹13-425外磨口14/20,全四氟传输连接头 | C27: 个 | D27: 119 | E27: 69 | F27: 58% | G27: 自制件 | H27: https://www.labgogo.com/prodetail/%E6%AC%A3%E7%BB%B4%E5%B0%94/A081314.html
A28: A081319 | B28: 内螺纹13-425外磨口19/22,全四氟传输连接头 | C28: 个 | D28: 132 | E28: 77 | F28: 58% | G28: 自制件 | H28: https://www.labgogo.com/prodetail/%E6%AC%A3%E7%BB%B4%E5%B0%94/A081319.html
A29: A081519 | B29: 内螺纹15-425外磨口19/22,全四氟传输连接头 | C29: 个 | D29: 148 | E29: 86 | F29: 58% | G29: 自制件 | H29: https://www.labgogo.com/prodetail/%E6%AC%A3%E7%BB%B4%E5%B0%94/A081519.html
A30: A081524 | B30: 内螺纹15-425外磨口24/40,全四氟传输连接头 | C30: 个 | D30: 185 | E30: 107 | F30: 58% | G30: 自制件 | H30: https://www.labgogo.com/prodetail/%E6%AC%A3%E7%BB%B4%E5%B0%94/A081524.html
A31: A082019 | B31: 内螺纹20-400外磨口19/22,全四氟传输连接头 | C31: 个 | D31: 155 | E31: 90 | F31: 58% | G31: 自制件 | H31: https://www.labgogo.com/prodetail/%E6%AC%A3%E7%BB%B4%E5%B0%94/A082019.html
A32: A082024 | B32: 内螺纹20-400外磨口24/40,全四氟传输连接头 | C32: 个 | D32: 233 | E32: 135 | F32: 58% | G32: 自制件 | H32: https://www.labgogo.com/prodetail/%E6%AC%A3%E7%BB%B4%E5%B0%94/A082024.html
A33: A082029 | B33: 内螺纹20-400外磨口29/42,全四氟传输连接头 | C33: 个 | D33: 280 | E33: 162 | F33: 58% | G33: 自制件 | H33: https://www.labgogo.com/prodetail/%E6%AC%A3%E7%BB%B4%E5%B0%94/A082029.html
A34: A082419 | B34: 内螺纹24-400外磨口19/22,全四氟传输连接头 | C34: 个 | D34: 159 | E34: 92 | F34: 58% | G34: 自制件 | H34: https://www.labgogo.com/prodetail/%E6%AC%A3%E7%BB%B4%E5%B0%94/A082419.html
A35: A082424 | B35: 内螺纹24-400外磨口24/40,全四氟传输连接头 | C35: 个 | D35: 252 | E35: 146 | F35: 58% | G35: 自制件 | H35: https://www.labgogo.com/prodetail/%E6%AC%A3%E7%BB%B4%E5%B0%94/A082424.html
A36: A082429 | B36: 内螺纹24-400外磨口29/42,全四氟传输连接头 | C36: 个 | D36: 285 | E36: 165 | F36: 58% | G36: 自制件 | H36: https://www.labgogo.com/prodetail/%E6%AC%A3%E7%BB%B4%E5%B0%94/A082429.html
A37: A091419 | B37: 内磨口14/20外磨口19/22,四氟接头 | C37: 个 | D37: 136 | E37: 79 | F37: 58% | G37: 自制件 | H37: https://www.labgogo.com/prodetail/%E6%AC%A3%E7%BB%B4%E5%B0%94/A091419.html
A38: A091424 | B38: 内磨口14/20外磨口24/40,四氟接头 | C38: 个 | D38: 143 | E38: 83 | F38: 58% | G38: 自制件 | H38: https://www.labgogo.com/prodetail/%E6%AC%A3%E7%BB%B4%E5%B0%94/A091424.html
A39: A091924 | B39: 内磨口19/22外磨口24/40,四氟接头 | C39: 个 | D39: 152 | E39: 88 | F39: 58% | G39: 自制件 | H39: https://www.labgogo.com/prodetail/%E6%AC%A3%E7%BB%B4%E5%B0%94/A091924.html
A40: A092429 | B40: 内磨口24/40外磨口29/42,四氟接头 | C40: 个 | D40: 185 | E40: 107 | F40: 58% | G40: 自制件 | H40: https://www.labgogo.com/prodetail/%E6%AC%A3%E7%BB%B4%E5%B0%94/A092429.html
A41: A092440 | B41: 内磨口24/40外磨口40/50,四氟接头 | C41: 个 | D41: 252 | E41: 146 | F41: 58% | G41: 自制件 | H41: https://www.labgogo.com/prodetail/%E6%AC%A3%E7%BB%B4%E5%B0%94/A092440.html
A42: A092445 | B42: 内磨口24/40外磨口45/50,四氟接头 | C42: 个 | D42: 335 | E42: 194 | F42: 58% | G42: 自制件 | H42: https://www.labgogo.com/prodetail/%E6%AC%A3%E7%BB%B4%E5%B0%94/A092445.html
A43: A101420 | B43: 倒“Y”型接头,磨口:14/20 | C43: 个 | D43: 101 | E43: 59 | F43: 58% | G43: 自制件 | H43: https://www.labgogo.com/prodetail/%E6%AC%A3%E7%BB%B4%E5%B0%94/A101420.html
A44: A101922 | B44: 倒“Y”型接头,磨口:19/22 | C44: 个 | D44: 106 | E44: 61 | F44: 58% | G44: 自制件 | H44: https://www.labgogo.com/prodetail/%E6%AC%A3%E7%BB%B4%E5%B0%94/A101922.html
A45: A102440 | B45: 倒“Y”型接头,磨口:24/40 | C45: 个 | D45: 112 | E45: 65 | F45: 58% | G45: 自制件 | H45: https://www.labgogo.com/prodetail/%E6%AC%A3%E7%BB%B4%E5%B0%94/A102440.html
A46: A111420 | B46: 克来森接头,磨口:14/20 | C46: 个 | D46: 168 | E46: 97 | F46: 58% | G46: 自制件 | H46: https://www.labgogo.com/prodetail/%E6%AC%A3%E7%BB%B4%E5%B0%94/A111420.html
A47: A111922 | B47: 克来森接头,磨口:19/22 | C47: 个 | D47: 185 | E47: 107 | F47: 58% | G47: 自制件 | H47: https://www.labgogo.com/prodetail/%E6%AC%A3%E7%BB%B4%E5%B0%94/A111922.html
A48: A112440 | B48: 克来森接头,磨口:24/40 | C48: 个 | D48: 208 | E48: 121 | F48: 58% | G48: 自制件 | H48: https://www.labgogo.com/prodetail/%E6%AC%A3%E7%BB%B4%E5%B0%94/A112440.html
A49: A121420 | B49: 液体或气体转移接头,具2mm四氟节门,14/20 | C49: 个 | D49: 210 | E49: 122 | F49: 58% | G49: 自制件 | H49: https://www.labgogo.com/prodetail/%E6%AC%A3%E7%BB%B4%E5%B0%94/A121420.html
A50: A121922 | B50: 液体或气体转移接头,具2mm四氟节门,19/22 | C50: 个 | D50: 215 | E50: 125 | F50: 58% | G50: 自制件 | H50: https://www.labgogo.com/prodetail/%E6%AC%A3%E7%BB%B4%E5%B0%94/A121922.html
A51: A122440 | B51: 液体或气体转移接头,具2mm四氟节门,24/40 | C51: 个 | D51: 229 | E51: 133 | F51: 58% | G51: 自制件 | H51: https://www.labgogo.com/prodetail/%E6%AC%A3%E7%BB%B4%E5%B0%94/A122440.html
A52: A122942 | B52: 液体或气体转移接头,具2mm四氟节门,29/42 | C52: 个 | D52: 243 | E52: 141 | F52: 58% | G52: 自制件 | H52: https://www.labgogo.com/prodetail/%E6%AC%A3%E7%BB%B4%E5%B0%94/A122942.html
A53: A131024 | B53: 带刺蒸馏头,上磨口:10/18,其它磨口:24/40 | C53: 个 | D53: 79 | E53: 46 | F53: 58% | G53: 自制件 | H53: https://www.labgogo.com/prodetail/%E6%AC%A3%E7%BB%B4%E5%B0%94/A131024.html
A54: A13425 | B54: 15#螺纹-13-425螺纹,四氟连接头 | C54: 个 | D54: 119 | E54: 69 | F54: 58% | G54: 自制件 | H54: https://www.labgogo.com/prodetail/%E6%AC%A3%E7%BB%B4%E5%B0%94/A13425.html
A55: A141420 | B55: 导向接头,磨口:14/20,总高:90mm | C55: 个 | D55: 64 | E55: 37 | F55: 58% | G55: 自制件 | H55: https://www.labgogo.com/prodetail/%E6%AC%A3%E7%BB%B4%E5%B0%94/A141420.html
A56: A141922 | B56: 导向接头,磨口:19/22,总高:90mm | C56: 个 | D56: 68 | E56: 39 | F56: 57% | G56: 自制件 | H56: https://www.labgogo.com/prodetail/%E6%AC%A3%E7%BB%B4%E5%B0%94/A141922.html
A57: A151420 | B57: 75°弯头,磨口:14/20 | C57: 个 | D57: 45 | E57: 26 | F57: 58% | G57: 自制件 | H57: https://www.labgogo.com/prodetail/%E6%AC%A3%E7%BB%B4%E5%B0%94/A151420.html
A58: A151922 | B58: 75°弯头,磨口:19/22 | C58: 个 | D58: 46 | E58: 27 | F58: 59% | G58: 自制件 | H58: https://www.labgogo.com/prodetail/%E6%AC%A3%E7%BB%B4%E5%B0%94/A151922.html
A59: A152440 | B59: 75°弯头,磨口:24/40 | C59: 个 | D59: 56 | E59: 32 | F59: 57% | G59: 自制件 | H59: https://www.labgogo.com/prodetail/%E6%AC%A3%E7%BB%B4%E5%B0%94/A152440.html
A60: A15425 | B60: 15#螺纹-15-425螺纹,四氟连接头 | C60: 个 | D60: 119 | E60: 69 | F60: 58% | G60: 自制件 | H60: https://www.labgogo.com/prodetail/%E6%AC%A3%E7%BB%B4%E5%B0%94/A15425.html
A61: A162440 | B61: 温度计接头,具10/30温度计磨口,磨口24/40 | C61: 个 | D61: 87 | E61: 50 | F61: 57% | G61: 自制件 | H61: https://www.labgogo.com/prodetail/%E6%AC%A3%E7%BB%B4%E5%B0%94/A162440.html
A62: A171420 | B62: 凯氏接头,磨口:14/20 | C62: 个 | D62: 130 | E62: 75 | F62: 58% | G62: 自制件 | H62: https://www.labgogo.com/prodetail/%E6%AC%A3%E7%BB%B4%E5%B0%94/A171420.html
A63: A171922 | B63: 凯氏接头,磨口:19/22 | C63: 个 | D63: 139 | E63: 81 | F63: 58% | G63: 自制件 | H63: https://www.labgogo.com/prodetail/%E6%AC%A3%E7%BB%B4%E5%B0%94/A171922.html
A64: A172440 | B64: 凯氏接头,磨口:24/40 | C64: 个 | D64: 152 | E64: 88 | F64: 58% | G64: 自制件 | H64: https://www.labgogo.com/prodetail/%E6%AC%A3%E7%BB%B4%E5%B0%94/A172440.html
A65: A180030 | B65: 上部接头,#30 O型圈磨口 | C65: 个 | D65: 208 | E65: 121 | F65: 58% | G65: 自制件 | H65: https://www.labgogo.com/prodetail/%E6%AC%A3%E7%BB%B4%E5%B0%94/A180030.html
A66: A180040 | B66: 上部接头,#40 O型圈磨口 | C66: 个 | D66: 237 | E66: 137 | F66: 58% | G66: 自制件 | H66: https://www.labgogo.com/prodetail/%E6%AC%A3%E7%BB%B4%E5%B0%94/A180040.html
A67: A180050 | B67: 上部接头,#50 O型圈磨口 | C67: 个 | D67: 291 | E67: 169 | F67: 58% | G67: 自制件 | H67: https://www.labgogo.com/prodetail/%E6%AC%A3%E7%BB%B4%E5%B0%94/A180050.html
A68: A18400 | B68: 15#螺纹-18-400螺纹,四氟连接头 | C68: 个 | D68: 119 | E68: 69 | F68: 58% | G68: 自制件 | H68: https://www.labgogo.com/prodetail/%E6%AC%A3%E7%BB%B4%E5%B0%94/A18400.html
A69: A191414 | B69: 接头,45°方向具四氟节门,磨口:14/20,2mm节门孔径 | C69: 个 | D69: 90 | E69: 52 | F69: 58% | G69: 自制件 | H69: https://www.labgogo.com/prodetail/%E6%AC%A3%E7%BB%B4%E5%B0%94/A191414.html
A70: A191919 | B70: 接头,45°方向具四氟节门,磨口:19/22,2mm节门孔径 | C70: 个 | D70: 100 | E70: 58 | F70: 58% | G70: 自制件 | H70: https://www.labgogo.com/prodetail/%E6%AC%A3%E7%BB%B4%E5%B0%94/A191919.html
A71: A192424 | B71: 接头,45°方向具四氟节门,磨口:24/40,2mm节门孔径 | C71: 个 | D71: 107 | E71: 62 | F71: 58% | G71: 自制件 | H71: https://www.labgogo.com/prodetail/%E6%AC%A3%E7%BB%B4%E5%B0%94/A192424.html
A72: A192942 | B72: 接头,45°方向具四氟节门,磨口:29/42,2mm节门孔径 | C72: 个 | D72: 128 | E72: 74 | F72: =E72/D72 -> 58% | G72: 自制件 | H72: https://www.labgogo.com/prodetail/%E6%AC%A3%E7%BB%B4%E5%B0%94/A192942.html
A73: A201024 | B73: A型接头(大变小),上磨口:10/30,下磨口:24/40 | C73: 个 | D73: 34 | E73: 20 | F73: 59% | G73: 自制件 | H73: https://www.labgogo.com/prodetail/%E6%AC%A3%E7%BB%B4%E5%B0%94/A201024.html
A74: A201419 | B74: A型接头(大变小),上磨口:14/20,下磨口:19/22 | C74: 个 | D74: 25 | E74: 14 | F74: 56% | G74: 自制件 | H74: https://www.labgogo.com/prodetail/%E6%AC%A3%E7%BB%B4%E5%B0%94/A201419.html
A75: A201424 | B75: A型接头(大变小),上磨口:14/20,下磨口:24/40 | C75: 个 | D75: 29 | E75: 17 | F75: 59% | G75: 自制件 | H75: https://www.labgogo.com/prodetail/%E6%AC%A3%E7%BB%B4%E5%B0%94/A201424.html
A76: A201924 | B76: A型接头(大变小),上磨口:19/22,下磨口:24/40 | C76: 个 | D76: 32 | E76: 19 | F76: 59% | G76: 自制件 | H76: https://www.labgogo.com/prodetail/%E6%AC%A3%E7%BB%B4%E5%B0%94/A201924.html
A77: A201929 | B77: A型接头(大变小),上磨口:19/22,下磨口:29/42 | C77: 个 | D77: 43 | E77: 25 | F77: 58% | G77: 自制件 | H77: https://www.labgogo.com/prodetail/%E6%AC%A3%E7%BB%B4%E5%B0%94/A201929.html
A78: A202429 | B78: A型接头(大变小),上磨口:24/40,下磨口:29/42 | C78: 个 | D78: 46 | E78: 27 | F78: 59% | G78: 自制件 | H78: https://www.labgogo.com/prodetail/%E6%AC%A3%E7%BB%B4%E5%B0%94/A202429.html
A79: A202434 | B79: A型接头(大变小),上磨口:24/40,下磨口:34/45 | C79: 个 | D79: 50 | E79: 29 | F79: 58% | G79: 自制件 | H79: https://www.labgogo.com/prodetail/%E6%AC%A3%E7%BB%B4%E5%B0%94/A202434.html
A80: A202445 | B80: A型接头(大变小),上磨口:24/40,下磨口:45/50 | C80: 个 | D80: 70 | E80: 41 | F80: 59% | G80: 自制件 | H80: https://www.labgogo.com/prodetail/%E6%AC%A3%E7%BB%B4%E5%B0%94/A202445.html
A81: A202455 | B81: A型接头(大变小),上磨口:24/40,下磨口:55/50 | C81: 个 | D81: 102 | E81: 59 | F81: 58% | G81: 自制件 | H81: https://www.labgogo.com/prodetail/%E6%AC%A3%E7%BB%B4%E5%B0%94/A202455.html
A82: A202945 | B82: A型接头(大变小),上磨口:29/42,下磨口:45/50 | C82: 个 | D82: 96 | E82: 56 | F82: 58% | G82: 自制件 | H82: https://www.labgogo.com/prodetail/%E6%AC%A3%E7%BB%B4%E5%B0%94/A202945.html
A83: A202955 | B83: A型接头(大变小),上磨口:29/42,下磨口:55/50 | C83: 个 | D83: 120 | E83: 70 | F83: 58% | G83: 自制件 | H83: https://www.labgogo.com/prodetail/%E6%AC%A3%E7%BB%B4%E5%B0%94/A202955.html
A84: A203014 | B84: A型接头(大变小),上磨口:10/30,下磨口:14/20 | C84: 个 | D84: 33 | E84: 19 | F84: 58% | G84: 自制件 | H84: https://www.labgogo.com/prodetail/%E6%AC%A3%E7%BB%B4%E5%B0%94/A203014.html
A85: A203019 | B85: A型接头(大变小),上磨口:10/30,下磨口:19/22 | C85: 个 | D85: 33 | E85: 19 | F85: 58% | G85: 自制件 | H85: https://www.labgogo.com/prodetail/%E6%AC%A3%E7%BB%B4%E5%B0%94/A203019.html
A86: A20400 | B86: 15#螺纹-20-400螺纹,四氟连接头 | C86: 个 | D86: 119 | E86: 69 | F86: 58% | G86: 自制件 | H86: https://www.labgogo.com/prodetail/%E6%AC%A3%E7%BB%B4%E5%B0%94/A20400.html
A87: A214125 | B87: 薄层色谱喷雾器,125ml,24/40 | C87: 个 | D87: 392 | E87: 227 | F87: 58% | G87: 自制件 | H87: https://www.labgogo.com/prodetail/%E6%AC%A3%E7%BB%B4%E5%B0%94/A214125.html
A88: A214250 | B88: 薄层色谱喷雾器,250mL,24/40 | C88: 个 | D88: 439 | E88: 255 | F88: 58% | G88: 自制件 | H88: https://www.labgogo.com/prodetail/%E6%AC%A3%E7%BB%B4%E5%B0%94/A214250.html
A89: A221420 | B89: 液体倒出接头,磨口:14/20 | C89: 个 | D89: 29 | E89: 17 | F89: 59% | G89: 自制件 | H89: https://www.labgogo.com/prodetail/%E6%AC%A3%E7%BB%B4%E5%B0%94/A221420.html
A90: A221420W | B90: 磨口：14/20,倒液接头 | C90: 个 | D90: 81 | E90: 47 | F90: 58% | G90: 自制件 | H90: https://www.labgogo.com/prodetail/%E6%AC%A3%E7%BB%B4%E5%B0%94/A221420W.html
A91: A221922 | B91: 液体倒出接头,磨口:19/22 | C91: 个 | D91: 30 | E91: 17 | F91: 57% | G91: 自制件 | H91: https://www.labgogo.com/prodetail/%E6%AC%A3%E7%BB%B4%E5%B0%94/A221922.html
A92: A221922W | B92: 磨口：19/22,倒液接头 | C92: 个 | D92: 83 | E92: 48 | F92: 58% | G92: 自制件 | H92: https://www.labgogo.com/prodetail/%E6%AC%A3%E7%BB%B4%E5%B0%94/A221922W.html
A93: A222440 | B93: 液体倒出接头,磨口:24/40 | C93: 个 | D93: 33 | E93: 19 | F93: 58% | G93: 自制件 | H93: https://www.labgogo.com/prodetail/%E6%AC%A3%E7%BB%B4%E5%B0%94/A222440.html
A94: A222440W | B94: 磨口：24/40,倒液接头 | C94: 个 | D94: 85 | E94: 49 | F94: 58% | G94: 自制件 | H94: https://www.labgogo.com/prodetail/%E6%AC%A3%E7%BB%B4%E5%B0%94/A222440W.html
A95: A222942 | B95: 液体倒出接头,磨口:29/42 | C95: 个 | D95: 44 | E95: 26 | F95: 59% | G95: 自制件 | H95: https://www.labgogo.com/prodetail/%E6%AC%A3%E7%BB%B4%E5%B0%94/A222942.html
A96: A222942W | B96: 磨口：29/42,倒液接头 | C96: 个 | D96: 88 | E96: 51 | F96: 58% | G96: 自制件 | H96: https://www.labgogo.com/prodetail/%E6%AC%A3%E7%BB%B4%E5%B0%94/A222942W.html
A97: A231250 | B97: 防溅球,具砂板,上磨口:24/40,下磨口:14/20,250ml | C97: 个 | D97: 197 | E97: 99 | F97: 50% | G97: 自制件 | H97: https://www.labgogo.com/prodetail/%E6%AC%A3%E7%BB%B4%E5%B0%94/A231250.html
A98: A232250 | B98: 防溅球,具砂板,上磨口:29/42,下磨口:24/40,250ml | C98: 个 | D98: 237 | E98: 119 | F98: 50% | G98: 自制件 | H98: https://www.labgogo.com/prodetail/%E6%AC%A3%E7%BB%B4%E5%B0%94/A232250.html
A99: A232414 | B99: 防溅球,具砂板,上磨口:24/40,下磨口:14/20,100ml | C99: 个 | D99: 172 | E99: 86 | F99: 50% | G99: 自制件 | H99: https://www.labgogo.com/prodetail/%E6%AC%A3%E7%BB%B4%E5%B0%94/A232414.html
A100: A232419 | B100: 防溅球,具砂板,上磨口:24/40,下磨口:19/22,100ml | C100: 个 | D100: 184 | E100: 92 | F100: 50% | G100: 自制件 | H100: https://www.labgogo.com/prodetail/%E6%AC%A3%E7%BB%B4%E5%B0%94/A232419.html
A101: A232424 | B101: 防溅球,具砂板,上磨口:24/40,下磨口:24/40,100ml | C101: 个 | D101: 196 | E101: 98 | F101: 50% | G101: 自制件 | H101: https://www.labgogo.com/prodetail/%E6%AC%A3%E7%BB%B4%E5%B0%94/A232424.html
A102: A232914 | B102: 防溅球,具砂板,上磨口:29/42,下磨口:14/20,100ml | C102: 个 | D102: 184 | E102: 92 | F102: 50% | G102: 自制件 | H102: https://www.labgogo.com/prodetail/%E6%AC%A3%E7%BB%B4%E5%B0%94/A232914.html
A103: A232919 | B103: 防溅球,具砂板,上磨口:29/42,下磨口:19/22,100ml | C103: 个 | D103: 196 | E103: 98 | F103: 50% | G103: 自制件 | H103: https://www.labgogo.com/prodetail/%E6%AC%A3%E7%BB%B4%E5%B0%94/A232919.html
A104: A232924 | B104: 防溅球,具砂板,上磨口:29/42,下磨口:24/40,100ml | C104: 个 | D104: 208 | E104: 104 | F104: 50% | G104: 自制件 | H104: https://www.labgogo.com/prodetail/%E6%AC%A3%E7%BB%B4%E5%B0%94/A232924.html
A105: A232929 | B105: 防溅球,具砂板,上磨口:29/42,下磨口:29/42,100ml | C105: 个 | D105: 220 | E105: 110 | F105: 50% | G105: 自制件 | H105: https://www.labgogo.com/prodetail/%E6%AC%A3%E7%BB%B4%E5%B0%94/A232929.html
A106: A234250 | B106: 防溅球,具砂板,上磨口:24/40,下磨口:24/40,250ml | C106: 个 | D106: 221 | E106: 111 | F106: 50% | G106: 自制件 | H106: https://www.labgogo.com/prodetail/%E6%AC%A3%E7%BB%B4%E5%B0%94/A234250.html
A107: A238250 | B107: 防溅球,具砂板,上磨口:29/42,下磨口:29/42,250ml | C107: 个 | D107: 249 | E107: 125 | F107: 50% | G107: 自制件 | H107: https://www.labgogo.com/prodetail/%E6%AC%A3%E7%BB%B4%E5%B0%94/A238250.html
A108: A238251 | B108: 防溅球,具砂板,上磨口:29/42,下磨口:14/20,250ml | C108: 个 | D108: 213 | E108: 107 | F108: 50% | G108: 自制件 | H108: https://www.labgogo.com/prodetail/%E6%AC%A3%E7%BB%B4%E5%B0%94/A238251.html
A109: A238259 | B109: 防溅球,具砂板,上磨口:29/42,下磨口:19/22,250ml | C109: 个 | D109: 225 | E109: 113 | F109: 50% | G109: 自制件 | H109: https://www.labgogo.com/prodetail/%E6%AC%A3%E7%BB%B4%E5%B0%94/A238259.html
A110: A239250 | B110: 防溅球,具砂板,上磨口:24/40,下磨口:19/22,250ml | C110: 个 | D110: 209 | E110: 105 | F110: 50% | G110: 自制件 | H110: https://www.labgogo.com/prodetail/%E6%AC%A3%E7%BB%B4%E5%B0%94/A239250.html
A111: A241250 | B111: 防溅球,具孔玻板,上磨口:24/40,下磨口:14/20,250ml | C111: 个 | D111: 219 | E111: 110 | F111: 50% | G111: 自制件 | H111: https://www.labgogo.com/prodetail/%E6%AC%A3%E7%BB%B4%E5%B0%94/A241250.html
A112: A242250 | B112: 防溅球,具孔玻板,上磨口:29/42,下磨口:24/40,250ml | C112: 个 | D112: 259 | E112: 130 | F112: 50% | G112: 自制件 | H112: https://www.labgogo.com/prodetail/%E6%AC%A3%E7%BB%B4%E5%B0%94/A242250.html
A113: A242414 | B113: 防溅球,具孔玻板,上磨口:24/40,下磨口:14/20,100ml | C113: 个 | D113: 194 | E113: 97 | F113: 50% | G113: 自制件 | H113: https://www.labgogo.com/prodetail/%E6%AC%A3%E7%BB%B4%E5%B0%94/A242414.html
A114: A242419 | B114: 防溅球,具孔玻板,上磨口:24/40,下磨口:19/22,100ml | C114: 个 | D114: 206 | E114: 103 | F114: 50% | G114: 自制件 | H114: https://www.labgogo.com/prodetail/%E6%AC%A3%E7%BB%B4%E5%B0%94/A242419.html
A115: A242424 | B115: 防溅球,具孔玻板,上磨口:24/40,下磨口:24/40,100ml | C115: 个 | D115: 218 | E115: 109 | F115: 50% | G115: 自制件 | H115: https://www.labgogo.com/prodetail/%E6%AC%A3%E7%BB%B4%E5%B0%94/A242424.html
A116: A242914 | B116: 防溅球,具孔玻板,上磨口:29/42,下磨口:14/20,100ml | C116: 个 | D116: 206 | E116: 103 | F116: 50% | G116: 自制件 | H116: https://www.labgogo.com/prodetail/%E6%AC%A3%E7%BB%B4%E5%B0%94/A242914.html
A117: A242919 | B117: 防溅球,具孔玻板,上磨口:29/42,下磨口:19/22,100ml | C117: 个 | D117: 218 | E117: 109 | F117: 50% | G117: 自制件 | H117: https://www.labgogo.com/prodetail/%E6%AC%A3%E7%BB%B4%E5%B0%94/A242919.html
A118: A242924 | B118: 防溅球,具孔玻板,上磨口:29/42,下磨口:24/40,100ml | C118: 个 | D118: 230 | E118: 115 | F118: 50% | G118: 自制件 | H118: https://www.labgogo.com/prodetail/%E6%AC%A3%E7%BB%B4%E5%B0%94/A242924.html
A119: A242929 | B119: 防溅球,具孔玻板,上磨口:29/42,下磨口:29/42,100ml | C119: 个 | D119: 242 | E119: 121 | F119: 50% | G119: 自制件 | H119: https://www.labgogo.com/prodetail/%E6%AC%A3%E7%BB%B4%E5%B0%94/A242929.html
A120: A24400 | B120: 15#螺纹24-400螺纹,四氟连接头 | C120: 个 | D120: 119 | E120: 69 | F120: 58% | G120: 自制件 | H120: https://www.labgogo.com/prodetail/%E6%AC%A3%E7%BB%B4%E5%B0%94/A24400.html
A121: A244250 | B121: 防溅球,具孔玻板,上磨口:24/40,下磨口:24/40,250ml | C121: 个 | D121: 243 | E121: 122 | F121: 50% | G121: 自制件 | H121: https://www.labgogo.com/prodetail/%E6%AC%A3%E7%BB%B4%E5%B0%94/A244250.html
A122: A248250 | B122: 防溅球,具孔玻板,上磨口:29/42,下磨口:29/42,250ml | C122: 个 | D122: 271 | E122: 136 | F122: 50% | G122: 自制件 | H122: https://www.labgogo.com/prodetail/%E6%AC%A3%E7%BB%B4%E5%B0%94/A248250.html
A123: A248251 | B123: 具孔玻璃板防溅球,上磨口:29/42,下磨口:14/20,250ml | C123: 个 | D123: 235 | E123: 118 | F123: 50% | G123: 自制件 | H123: https://www.labgogo.com/prodetail/%E6%AC%A3%E7%BB%B4%E5%B0%94/A248251.html
A124: A248259 | B124: 具孔玻璃板防溅球,上磨口:29/42,下磨口:19/22,250ml | C124: 个 | D124: 247 | E124: 124 | F124: 50% | G124: 自制件 | H124: https://www.labgogo.com/prodetail/%E6%AC%A3%E7%BB%B4%E5%B0%94/A248259.html
A125: A249250 | B125: 防溅球,具孔玻板,上磨口:24/40,下磨口:19/22,250ml | C125: 个 | D125: 231 | E125: 116 | F125: 50% | G125: 自制件 | H125: https://www.labgogo.com/prodetail/%E6%AC%A3%E7%BB%B4%E5%B0%94/A249250.html
A126: A251914 | B126: B型接头(小变大),上磨口:19/22,下磨口:14/20 | C126: 个 | D126: 29 | E126: 17 | F126: 59% | G126: 自制件 | H126: https://www.labgogo.com/prodetail/%E6%AC%A3%E7%BB%B4%E5%B0%94/A251914.html
A127: A252410 | B127: B型接头(小变大),上磨口:24/40,下磨口:10/30 | C127: 个 | D127: 33 | E127: 19 | F127: 58% | G127: 自制件 | H127: https://www.labgogo.com/prodetail/%E6%AC%A3%E7%BB%B4%E5%B0%94/A252410.html
A128: A252414 | B128: B型接头(小变大),上磨口:24/40,下磨口:14/20 | C128: 个 | D128: 30 | E128: 17 | F128: 57% | G128: 自制件 | H128: https://www.labgogo.com/prodetail/%E6%AC%A3%E7%BB%B4%E5%B0%94/A252414.html
A129: A252419 | B129: B型接头(小变大),上磨口:24/40,下磨口:19/22 | C129: 个 | D129: 32 | E129: 19 | F129: 59% | G129: 自制件 | H129: https://www.labgogo.com/prodetail/%E6%AC%A3%E7%BB%B4%E5%B0%94/A252419.html
A130: A252914 | B130: B型接头(小变大),上磨口:29/42,下磨口:14/20 | C130: 个 | D130: 49 | E130: 28 | F130: 57% | G130: 自制件 | H130: https://www.labgogo.com/prodetail/%E6%AC%A3%E7%BB%B4%E5%B0%94/A252914.html
A131: A252919 | B131: B型接头(小变大),上磨口:29/42,下磨口:19/22 | C131: 个 | D131: 52 | E131: 30 | F131: 58% | G131: 自制件 | H131: https://www.labgogo.com/prodetail/%E6%AC%A3%E7%BB%B4%E5%B0%94/A252919.html
A132: A252924 | B132: B型接头(小变大),上磨口:29/42,下磨口:24/40 | C132: 个 | D132: 54 | E132: 31 | F132: 57% | G132: 自制件 | H132: https://www.labgogo.com/prodetail/%E6%AC%A3%E7%BB%B4%E5%B0%94/A252924.html
A133: A253424 | B133: B型接头(小变大),上磨口:34/45,下磨口:24/40 | C133: 个 | D133: 69 | E133: 40 | F133: 58% | G133: 自制件 | H133: https://www.labgogo.com/prodetail/%E6%AC%A3%E7%BB%B4%E5%B0%94/A253424.html
A134: A254024 | B134: B型接头(小变大),上磨口:40/50,下磨口:24/40 | C134: 个 | D134: 78 | E134: 45 | F134: 58% | G134: 自制件 | H134: https://www.labgogo.com/prodetail/%E6%AC%A3%E7%BB%B4%E5%B0%94/A254024.html
A135: A254524 | B135: B型接头(小变大),上磨口:45/50,下磨口:24/40 | C135: 个 | D135: 89 | E135: 52 | F135: 58% | G135: 自制件 | H135: https://www.labgogo.com/prodetail/%E6%AC%A3%E7%BB%B4%E5%B0%94/A254524.html
A136: A254529 | B136: B型接头(小变大),上磨口:45/50,下磨口:29/42 | C136: 个 | D136: 99 | E136: 57 | F136: =E136/D136 -> 58% | G136: 自制件 | H136: https://www.labgogo.com/prodetail/%E6%AC%A3%E7%BB%B4%E5%B0%94/A254529.html
A137: A262414 | B137: 单内管蒸馏球,上磨口:24/40,下磨口:14/20,100ml | C137: 个 | D137: 112 | E137: 56 | F137: 50% | G137: 自制件 | H137: https://www.labgogo.com/prodetail/%E6%AC%A3%E7%BB%B4%E5%B0%94/A262414.html
A138: A262419 | B138: 单内管蒸馏球,上磨口:24/40,下磨口:19/22,100ml | C138: 个 | D138: 124 | E138: 62 | F138: 50% | G138: 自制件 | H138: https://www.labgogo.com/prodetail/%E6%AC%A3%E7%BB%B4%E5%B0%94/A262419.html
A139: A264100 | B139: 单内管蒸馏球,上磨口:24/40,下磨口:24/40,100ml | C139: 个 | D139: 136 | E139: 68 | F139: 50% | G139: 自制件 | H139: https://www.labgogo.com/prodetail/%E6%AC%A3%E7%BB%B4%E5%B0%94/A264100.html
A140: A272150 | B140: 防泡沫球,上磨口:24/40,下磨口:14/20,250ml | C140: 个 | D140: 137 | E140: 69 | F140: 50% | G140: 自制件 | H140: https://www.labgogo.com/prodetail/%E6%AC%A3%E7%BB%B4%E5%B0%94/A272150.html
A141: A272414 | B141: 防泡沫球,上磨口:24/40,下磨口:14/20,100ml | C141: 个 | D141: 112 | E141: 56 | F141: 50% | G141: 自制件 | H141: https://www.labgogo.com/prodetail/%E6%AC%A3%E7%BB%B4%E5%B0%94/A272414.html
A142: A272419 | B142: 防泡沫球,上磨口:24/40,下磨口:19/22,100ml | C142: 个 | D142: 124 | E142: 62 | F142: 50% | G142: 自制件 | H142: https://www.labgogo.com/prodetail/%E6%AC%A3%E7%BB%B4%E5%B0%94/A272419.html
A143: A272914 | B143: 防泡沫球,上磨口:29/42,下磨口:14/20,100ml | C143: 个 | D143: 124 | E143: 62 | F143: 50% | G143: 自制件 | H143: https://www.labgogo.com/prodetail/%E6%AC%A3%E7%BB%B4%E5%B0%94/A272914.html
A144: A272919 | B144: 防泡沫球,上磨口:29/42,下磨口:19/22,100ml | C144: 个 | D144: 136 | E144: 68 | F144: 50% | G144: 自制件 | H144: https://www.labgogo.com/prodetail/%E6%AC%A3%E7%BB%B4%E5%B0%94/A272919.html
A145: A272924 | B145: 防泡沫球,上磨口:29/42,下磨口:24/40,100ml | C145: 个 | D145: 148 | E145: 74 | F145: 50% | G145: 自制件 | H145: https://www.labgogo.com/prodetail/%E6%AC%A3%E7%BB%B4%E5%B0%94/A272924.html
A146: A272929 | B146: 防泡沫球,上磨口:29/42,下磨口:29/42,100ml | C146: 个 | D146: 160 | E146: 80 | F146: 50% | G146: 自制件 | H146: https://www.labgogo.com/prodetail/%E6%AC%A3%E7%BB%B4%E5%B0%94/A272929.html
A147: A272950 | B147: 防泡沫球,上磨口:24/40,下磨口:19/22,250ml | C147: 个 | D147: 149 | E147: 75 | F147: 50% | G147: 自制件 | H147: https://www.labgogo.com/prodetail/%E6%AC%A3%E7%BB%B4%E5%B0%94/A272950.html
A148: A274100 | B148: 防泡沫球,上磨口:24/40,下磨口:24/40,100ml | C148: 个 | D148: 136 | E148: 68 | F148: 50% | G148: 自制件 | H148: https://www.labgogo.com/prodetail/%E6%AC%A3%E7%BB%B4%E5%B0%94/A274100.html
A149: A274250 | B149: 防泡沫球,上磨口:24/40,下磨口:24/40,250ml | C149: 个 | D149: 161 | E149: 81 | F149: 50% | G149: 自制件 | H149: https://www.labgogo.com/prodetail/%E6%AC%A3%E7%BB%B4%E5%B0%94/A274250.html
A150: A279150 | B150: 防泡沫球,上磨口:29/42,下磨口:14/20,250ml | C150: 个 | D150: 153 | E150: 77 | F150: 50% | G150: 自制件 | H150: https://www.labgogo.com/prodetail/%E6%AC%A3%E7%BB%B4%E5%B0%94/A279150.html
A151: A279250 | B151: 防泡沫球,上磨口:29/42,下磨口:19/22,250ml | C151: 个 | D151: 165 | E151: 83 | F151: 50% | G151: 自制件 | H151: https://www.labgogo.com/prodetail/%E6%AC%A3%E7%BB%B4%E5%B0%94/A279250.html
A152: A279450 | B152: 防泡沫球,上磨口:29/42,下磨口:24/40,250ml | C152: 个 | D152: 177 | E152: 89 | F152: 50% | G152: 自制件 | H152: https://www.labgogo.com/prodetail/%E6%AC%A3%E7%BB%B4%E5%B0%94/A279450.html
A153: A281250 | B153: 防溅球,上磨口:24/40,下磨口:14/20,250ml | C153: 个 | D153: 127 | E153: 64 | F153: 50% | G153: 自制件 | H153: https://www.labgogo.com/prodetail/%E6%AC%A3%E7%BB%B4%E5%B0%94/A281250.html
A154: A281250BX | B154: 扁形防溅球,上磨口:24/40,下磨口:14/20,250ml | C154: 个 | D154: 127 | E154: 64 | F154: 50% | G154: 自制件 | H154: https://www.labgogo.com/prodetail/%E6%AC%A3%E7%BB%B4%E5%B0%94/A281250BX.html
A155: A282250 | B155: 防溅球,上磨口:29/42,下磨口:24/40,250ml | C155: 个 | D155: 167 | E155: 84 | F155: 50% | G155: 自制件 | H155: https://www.labgogo.com/prodetail/%E6%AC%A3%E7%BB%B4%E5%B0%94/A282250.html
A156: A282250BX | B156: 扁形防溅球,上磨口:29/42,下磨口:24/40,250ml | C156: 个 | D156: 167 | E156: 84 | F156: 50% | G156: 自制件 | H156: https://www.labgogo.com/prodetail/%E6%AC%A3%E7%BB%B4%E5%B0%94/A282250BX.html
A157: A282414 | B157: 防溅球,上磨口:24/40,下磨口:14/20,100ml | C157: 个 | D157: 102 | E157: 51 | F157: 50% | G157: 自制件 | H157: https://www.labgogo.com/prodetail/%E6%AC%A3%E7%BB%B4%E5%B0%94/A282414.html
A158: A282414BX | B158: 扁形防溅球,上磨口:24/40,下磨口:14/20,100ml | C158: 个 | D158: 102 | E158: 51 | F158: 50% | G158: 自制件 | H158: https://www.labgogo.com/prodetail/%E6%AC%A3%E7%BB%B4%E5%B0%94/A282414BX.html
A159: A282419 | B159: 防溅球,上磨口:24/40,下磨口:19/22,100ml | C159: 个 | D159: 114 | E159: 57 | F159: 50% | G159: 自制件 | H159: https://www.labgogo.com/prodetail/%E6%AC%A3%E7%BB%B4%E5%B0%94/A282419.html
A160: A282419BX | B160: 扁形防溅球,上磨口:24/40,下磨口:19/22,100ml | C160: 个 | D160: 114 | E160: 57 | F160: 50% | G160: 自制件 | H160: https://www.labgogo.com/prodetail/%E6%AC%A3%E7%BB%B4%E5%B0%94/A282419BX.html
A161: A282424 | B161: 防溅球,上磨口:24/40,下磨口:24/40,100ml | C161: 个 | D161: 126 | E161: 63 | F161: 50% | G161: 自制件 | H161: https://www.labgogo.com/prodetail/%E6%AC%A3%E7%BB%B4%E5%B0%94/A282424.html
A162: A282424BX | B162: 扁形防溅球,上磨口:24/40,下磨口:24/40,100ml | C162: 个 | D162: 126 | E162: 63 | F162: 50% | G162: 自制件 | H162: https://www.labgogo.com/prodetail/%E6%AC%A3%E7%BB%B4%E5%B0%94/A282424BX.html
A163: A282914 | B163: 防溅球,上磨口:29/42,下磨口:14/20,100ml | C163: 个 | D163: 114 | E163: 57 | F163: 50% | G163: 自制件 | H163: https://www.labgogo.com/prodetail/%E6%AC%A3%E7%BB%B4%E5%B0%94/A282914.html
A164: A282914BX | B164: 扁形防溅球,上磨口:29/42,下磨口:14/20,100ml | C164: 个 | D164: 114 | E164: 57 | F164: 50% | G164: 自制件 | H164: https://www.labgogo.com/prodetail/%E6%AC%A3%E7%BB%B4%E5%B0%94/A282914BX.html
A165: A282919 | B165: 防溅球,上磨口:29/42,下磨口:19/22,100ml | C165: 个 | D165: 126 | E165: 63 | F165: 50% | G165: 自制件 | H165: https://www.labgogo.com/prodetail/%E6%AC%A3%E7%BB%B4%E5%B0%94/A282919.html
A166: A282919BX | B166: 扁形防溅球,上磨口:29/42,下磨口:19/22,100ml | C166: 个 | D166: 126 | E166: 63 | F166: 50% | G166: 自制件 | H166: https://www.labgogo.com/prodetail/%E6%AC%A3%E7%BB%B4%E5%B0%94/A282919BX.html
A167: A282924 | B167: 防溅球,上磨口:29/42,下磨口:24/40,100ml | C167: 个 | D167: 138 | E167: 69 | F167: 50% | G167: 自制件 | H167: https://www.labgogo.com/prodetail/%E6%AC%A3%E7%BB%B4%E5%B0%94/A282924.html
A168: A282924BX | B168: 扁形防溅球,上磨口:29/42,下磨口:24/40,100ml | C168: 个 | D168: 138 | E168: 69 | F168: 50% | G168: 自制件 | H168: https://www.labgogo.com/prodetail/%E6%AC%A3%E7%BB%B4%E5%B0%94/A282924BX.html
A169: A282929 | B169: 防溅球,上磨口:29/42,下磨口:29/42,100ml | C169: 个 | D169: 150 | E169: 75 | F169: 50% | G169: 自制件 | H169: https://www.labgogo.com/prodetail/%E6%AC%A3%E7%BB%B4%E5%B0%94/A282929.html
A170: A282929BX | B170: 扁形防溅球,上磨口:29/42,下磨口:29/42,100ml | C170: 个 | D170: 150 | E170: 75 | F170: 50% | G170: 自制件 | H170: https://www.labgogo.com/prodetail/%E6%AC%A3%E7%BB%B4%E5%B0%94/A282929BX.html
A171: A284250 | B171: 防溅球,上磨口:24/40,下磨口:24/40,250ml | C171: 个 | D171: 151 | E171: 76 | F171: 50% | G171: 自制件 | H171: https://www.labgogo.com/prodetail/%E6%AC%A3%E7%BB%B4%E5%B0%94/A284250.html
A172: A284250BX | B172: 扁形防溅球,上磨口:24/40,下磨口:24/40,250ml | C172: 个 | D172: 151 | E172: 76 | F172: 50% | G172: 自制件 | H172: https://www.labgogo.com/prodetail/%E6%AC%A3%E7%BB%B4%E5%B0%94/A284250BX.html
A173: A288250 | B173: 防溅球,上磨口:29/42,下磨口:29/42,250ml | C173: 个 | D173: 179 | E173: 90 | F173: 50% | G173: 自制件 | H173: https://www.labgogo.com/prodetail/%E6%AC%A3%E7%BB%B4%E5%B0%94/A288250.html
A174: A288250BX | B174: 扁形防溅球,上磨口:29/42,下磨口:29/42,250ml | C174: 个 | D174: 179 | E174: 90 | F174: 50% | G174: 自制件 | H174: https://www.labgogo.com/prodetail/%E6%AC%A3%E7%BB%B4%E5%B0%94/A288250BX.html
A175: A288251 | B175: 防溅球,上磨口:29/42,下磨口:14/20,250ml | C175: 个 | D175: 143 | E175: 72 | F175: 50% | G175: 自制件 | H175: https://www.labgogo.com/prodetail/%E6%AC%A3%E7%BB%B4%E5%B0%94/A288251.html
A176: A288251BX | B176: 扁形防溅球,上磨口:29/42,下磨口:14/20,250ml | C176: 个 | D176: 143 | E176: 72 | F176: 50% | G176: 自制件 | H176: https://www.labgogo.com/prodetail/%E6%AC%A3%E7%BB%B4%E5%B0%94/A288251BX.html
A177: A288259 | B177: 防溅球,上磨口:29/42,下磨口:19/22,250ml | C177: 个 | D177: 155 | E177: 78 | F177: 50% | G177: 自制件 | H177: https://www.labgogo.com/prodetail/%E6%AC%A3%E7%BB%B4%E5%B0%94/A288259.html
A178: A288259BX | B178: 扁形防溅球,上磨口:29/42,下磨口:19/22,250ml | C178: 个 | D178: 155 | E178: 78 | F178: 50% | G178: 自制件 | H178: https://www.labgogo.com/prodetail/%E6%AC%A3%E7%BB%B4%E5%B0%94/A288259BX.html
A179: A289250 | B179: 防溅球,上磨口:24/40,下磨口:19/22,250ml | C179: 个 | D179: 139 | E179: 70 | F179: 50% | G179: 自制件 | H179: https://www.labgogo.com/prodetail/%E6%AC%A3%E7%BB%B4%E5%B0%94/A289250.html
A180: A289250BX | B180: 扁形防溅球,上磨口:24/40,下磨口:19/22,250ml | C180: 个 | D180: 139 | E180: 70 | F180: 50% | G180: 自制件 | H180: https://www.labgogo.com/prodetail/%E6%AC%A3%E7%BB%B4%E5%B0%94/A289250BX.html
A181: A291420 | B181: 省空间抽气接头,磨口14/20,小咀外径8mm | C181: 个 | D181: 20 | E181: 11 | F181: 55% | G181: 自制件 | H181: https://www.labgogo.com/prodetail/%E6%AC%A3%E7%BB%B4%E5%B0%94/A291420.html
A182: A291922 | B182: 省空间抽气接头,磨口19/22,小咀外径8mm | C182: 个 | D182: 21 | E182: 12 | F182: 57% | G182: 自制件 | H182: https://www.labgogo.com/prodetail/%E6%AC%A3%E7%BB%B4%E5%B0%94/A291922.html
A183: A292440 | B183: 省空间抽气接头,磨口24/40,小咀外径10mm | C183: 个 | D183: 22 | E183: 13 | F183: 59% | G183: 自制件 | H183: https://www.labgogo.com/prodetail/%E6%AC%A3%E7%BB%B4%E5%B0%94/A292440.html
A184: A292942 | B184: 省空间抽气接头,磨口29/42,小咀外径10mm | C184: 个 | D184: 34 | E184: 20 | F184: 59% | G184: 自制件 | H184: https://www.labgogo.com/prodetail/%E6%AC%A3%E7%BB%B4%E5%B0%94/A292942.html
A185: A293520 | B185: 省空间抽气接头,磨口35/20 | C185: 个 | D185: 39 | E185: 23 | F185: 59% | G185: 自制件 | H185: https://www.labgogo.com/prodetail/%E6%AC%A3%E7%BB%B4%E5%B0%94/A293520.html
A186: A301410 | B186: 微量直型抽气接头,14/10 | C186: 个 | D186: 24 | E186: 14 | F186: 58% | G186: 自制件 | H186: https://www.labgogo.com/prodetail/%E6%AC%A3%E7%BB%B4%E5%B0%94/A301410.html
A187: A301420 | B187: 直型抽气接头,磨口:14/20,φ8小咀接口 | C187: 个 | D187: 20 | E187: 11 | F187: 55% | G187: 自制件 | H187: https://www.labgogo.com/prodetail/%E6%AC%A3%E7%BB%B4%E5%B0%94/A301420.html
A188: A301922 | B188: 直型抽气接头,磨口:19/22,φ8小咀接口 | C188: 个 | D188: 21 | E188: 12 | F188: 57% | G188: 自制件 | H188: https://www.labgogo.com/prodetail/%E6%AC%A3%E7%BB%B4%E5%B0%94/A301922.html
A189: A302440 | B189: 直型抽气接头,磨口:24/40,φ10小咀接口 | C189: 个 | D189: 22 | E189: 13 | F189: 59% | G189: 自制件 | H189: https://www.labgogo.com/prodetail/%E6%AC%A3%E7%BB%B4%E5%B0%94/A302440.html
A190: A302942 | B190: 直型抽气接头,磨口:29/42,φ10小咀接口 | C190: 个 | D190: 33 | E190: 19 | F190: 58% | G190: 自制件 | H190: https://www.labgogo.com/prodetail/%E6%AC%A3%E7%BB%B4%E5%B0%94/A302942.html
A191: A314075 | B191: 气体或液体输入接头,24/40,φ10小咀接口,管长:75mm | C191: 个 | D191: 35 | E191: 20 | F191: 57% | G191: 自制件 | H191: https://www.labgogo.com/prodetail/%E6%AC%A3%E7%BB%B4%E5%B0%94/A314075.html
A192: A314250 | B192: 气体或液体输入接头,24/40,φ10小咀接口,管长:250mm | C192: 个 | D192: 36 | E192: 21 | F192: 58% | G192: 自制件 | H192: https://www.labgogo.com/prodetail/%E6%AC%A3%E7%BB%B4%E5%B0%94/A314250.html
A193: A321410 | B193: 微量抽气接头,具小咀,14/10 | C193: 个 | D193: 40 | E193: 23 | F193: 58% | G193: 自制件 | H193: https://www.labgogo.com/prodetail/%E6%AC%A3%E7%BB%B4%E5%B0%94/A321410.html
A194: A321420 | B194: 直型抽气接头,内磨口:14/20,φ8小咀接口 | C194: 个 | D194: 24 | E194: 14 | F194: 58% | G194: 自制件 | H194: https://www.labgogo.com/prodetail/%E6%AC%A3%E7%BB%B4%E5%B0%94/A321420.html
A195: A321922 | B195: 直型抽气接头,内磨口:19/22,φ8小咀接口 | C195: 个 | D195: 25 | E195: 14 | F195: 56% | G195: 自制件 | H195: https://www.labgogo.com/prodetail/%E6%AC%A3%E7%BB%B4%E5%B0%94/A321922.html
A196: A322440 | B196: 直型抽气接头,内磨口:24/40,φ10小咀接口 | C196: 个 | D196: 29 | E196: 17 | F196: 59% | G196: 自制件 | H196: https://www.labgogo.com/prodetail/%E6%AC%A3%E7%BB%B4%E5%B0%94/A322440.html
A197: A322942 | B197: 直型抽气接头,内磨口:29/42,φ10小咀接口 | C197: 个 | D197: 40 | E197: 23 | F197: 58% | G197: 自制件 | H197: https://www.labgogo.com/prodetail/%E6%AC%A3%E7%BB%B4%E5%B0%94/A322942.html
A198: A331420 | B198: “Y”型接头,磨口:14/20 | C198: 个 | D198: 127 | E198: 74 | F198: 58% | G198: 自制件 | H198: https://www.labgogo.com/prodetail/%E6%AC%A3%E7%BB%B4%E5%B0%94/A331420.html
A199: A331922 | B199: “Y”型接头,磨口:19/22 | C199: 个 | D199: 134 | E199: 78 | F199: 58% | G199: 自制件 | H199: https://www.labgogo.com/prodetail/%E6%AC%A3%E7%BB%B4%E5%B0%94/A331922.html
A200: A332440 | B200: “Y”型接头,磨口:24/40 | C200: 个 | D200: 139 | E200: 81 | F200: =E200/D200 -> 58% | G200: 自制件 | H200: https://www.labgogo.com/prodetail/%E6%AC%A3%E7%BB%B4%E5%B0%94/A332440.html
A201: A341420 | B201: 抽气接头,双小咀接口,磨口:14/20,φ8小咀接口 | C201: 个 | D201: 27 | E201: 16 | F201: 59% | G201: 自制件 | H201: https://www.labgogo.com/prodetail/%E6%AC%A3%E7%BB%B4%E5%B0%94/A341420.html
A202: A341922 | B202: 抽气接头,双小咀接口,磨口:19/22,φ8小咀接口 | C202: 个 | D202: 29 | E202: 17 | F202: 59% | G202: 自制件 | H202: https://www.labgogo.com/prodetail/%E6%AC%A3%E7%BB%B4%E5%B0%94/A341922.html
A203: A342440 | B203: 抽气接头,双小咀接口,磨口:24/40,φ10小咀接口 | C203: 个 | D203: 33 | E203: 19 | F203: 58% | G203: 自制件 | H203: https://www.labgogo.com/prodetail/%E6%AC%A3%E7%BB%B4%E5%B0%94/A342440.html
A204: A342942 | B204: 抽气接头,双小咀接口,磨口:29/42,φ10小咀接口 | C204: 个 | D204: 44 | E204: 26 | F204: 59% | G204: 自制件 | H204: https://www.labgogo.com/prodetail/%E6%AC%A3%E7%BB%B4%E5%B0%94/A342942.html
A205: A351014 | B205: 75°蒸馏头,上磨口:10/18,下(侧)磨口:14/20温度计插入深度50mm | C205: 个 | D205: 42 | E205: 24 | F205: 57% | G205: 自制件 | H205: https://www.labgogo.com/prodetail/%E6%AC%A3%E7%BB%B4%E5%B0%94/A351014.html
... 5345 more rows

Sheet Sheet2
